lending/lending_fUSD_20240908
["ID","MTS","AMOUNT","RATE_DAILY","PERIOD"]
[337529025,1725753980025,369.63,0.0001025,2]
[337529026,1725754024631,151.99,0.00010959,2]
[337529027,1725754121493,203.6,0.00012,2]
[337529028,1725754126222,750.0,0.00011,2]
[337529029,1725754138451,366.363424,0.00011991,2]
[337529037,1725754232096,-250.0,0.00012035,2]
[337529038,1725754232106,-200.0,0.00012035,2]
[337529039,1725754232120,-250.0,0.00012035,2]
[337529040,1725754232129,-250.35,0.00012052,2]
[337529041,1725754232138,-250.0,0.00012067,2]
[337529042,1725754232147,-300.0,0.00012114,2]
[337529043,1725754232157,-1125.88234269,0.00012115,2]
[337529044,1725754232256,-299.99,0.00012115,2]
[337529045,1725754232267,-22464.12765731,0.00012115,2]
[337529046,1725754232277,-800.0,0.00012152,2]
[337529047,1725754232286,-6637.72,0.00012182,2]
[337529048,1725754232296,-164.7,0.00012244,2]
[337529049,1725754232307,-299.99,0.00012514,2]
[337529051,1725754232317,-654.23,0.00012514,2]
[337529053,1725754232328,-369.63,0.00012514,2]
[337529054,1725754232339,-196.4,0.00012557,2]
[337529055,1725754232350,-150.0,0.00012799,2]
[337529056,1725754232361,-355.85,0.000128,2]
[337529057,1725754232372,-150.0,0.000128,2]
[337529058,1725754232381,-427.51,0.000128,2]
[337529059,1725754232390,-150.0,0.000128,2]
[337529060,1725754232400,-1579.6943,0.000128,2]
[337529061,1725754232410,-150.0,0.000128,2]
[337529062,1725754232422,-427.51,0.000128,2]
[337529063,1725754232434,-300.0,0.000128,2]
[337529064,1725754232446,-425.69,0.000128,2]
[337529065,1725754232456,-500.0,0.000128,4]
[337529066,1725754232465,-730.42575809,0.000128,2]
[337529067,1725754232476,-448.143,0.000128,2]
[337529068,1725754232484,-1076.49375956,0.0001287,2]
[337529069,1725754232493,-196231.74462346,0.000129,2]
[337529070,1725754238112,-306.53181999,0.000129,2]
[337529071,1725754238219,-5248.68595655,0.000129,2]
[337529072,1725754238228,-150.0,0.000129,2]
[337529073,1725754238238,-150.0,0.000129,2]
[337529074,1725754238248,-427.51,0.000129,2]
[337529075,1725754238257,-357.46,0.000129,2]
[337529076,1725754238267,-423.34404345,0.000129,2]
[337529077,1725754238278,-4.16595655,0.000129,2]
[337529078,1725754238288,-173.29145289,0.000129,2]
[337529079,1725754238298,-152.74007865,0.000129,2]
[337529080,1725754238307,-168.63863606,0.000129,2]
[337529081,1725754238316,-394.59232795,0.000129,4]
[337529082,1725754238327,-529.87799992,0.000129,4]
[337529083,1725754238381,-75.52967213,0.000129,4]
[337529084,1725754238391,-494.25849079,0.000129,2]
[337529085,1725754238430,-57.43409628,0.000129,2]
[337529086,1725754238439,-1145.0,0.000129,2]
[337529087,1725754238449,-9306.0,0.000129,2]
[337529088,1725754238458,-150.0,0.000129,2]
[337529089,1725754238468,-3714.211,0.000129,2]
[337529090,1725754238477,-1079.0,0.000129,2]
[337529091,1725754238486,-318.35583161,0.000129,2]
[337529092,1725754238495,-200.0,0.00012935,2]
[337529094,1725754238505,-500.0,0.00012973,2]
[337529096,1725754238514,-491.8074183,0.00012973,2]
[337529098,1725754238524,-500.0,0.00012973,2]
[337529100,1725754238534,-174.514,0.00012973,2]
[337529102,1725754238544,-384.096,0.00012973,2]
[337529104,1725754238553,-160.22,0.0001299,2]
[337529106,1725754238563,-90543.97039356,0.00013,2]
[337529146,1725754240167,-4040.10387698,0.00013,2]
[337529147,1725754240221,-2209.64138125,0.00013,2]
[337529148,1725754240379,-9517.7812094,0.00013,2]
[337529149,1725754240538,-271.515,0.00013,2]
[337529150,1725754240551,-13253.22423378,0.00013,2]
[337529162,1725754243127,-613.09825755,0.00013,2]
[337529163,1725754243138,-293.75433028,0.00013,2]
[337529164,1725754243150,-684.81157376,0.00013,2]
[337529165,1725754243612,-7040.65125959,0.00013,2]
[337529166,1725754243625,-2865.81931308,0.00013,2]
[337529167,1725754243637,-643.71140223,0.00013,2]
[337529169,1725754246222,-826.0730063,0.00013,2]
[337529170,1725754246233,-3975.80907621,0.00013,2]
[337529171,1725754246328,-4217.67554989,0.00013,2]
[337529172,1725754246337,-4488.63741174,0.00013,2]
[337529173,1725754246382,-16265.7,0.00013,2]
[337529174,1725754246436,-982.5,0.00013,2]
[337529175,1725754246492,-960.00652749,0.00013,2]
[337529176,1725754543528,250.0,9.922e-05,2]
[337529177,1725754543560,90.19,9.922e-05,2]
[337529178,1725754552935,290.1,0.00010959,2]
[337529179,1725754636802,139.35,0.00011792,2]
[337529180,1725754636829,60.65,0.00011792,2]
[337529181,1725754658333,250.35,0.00011782,2]
[337529183,1725754714278,250.0,0.00011783,2]
[337529184,1725754757510,840.0,0.00011769,2]
[337529185,1725754843306,395.48,0.00011765,2]
[337529186,1725754977835,580.41,0.00011776,2]
[337529188,1725755036324,237.32,0.00011771,2]
[337529189,1725755115115,330.86,9.867e-05,2]
[337529190,1725755143654,151.23,0.00011763,2]
[337529191,1725755150613,13180.82,0.00011763,2]
[337529192,1725755199051,155.79,0.00010959,2]
[337529193,1725755203930,250.0,0.00011756,2]
[337529194,1725755259402,250.0,0.00011766,2]
[337529196,1725755316176,197.12,0.00011751,2]
[337529197,1725755335606,328.0,0.00011751,2]
[337529211,1725755432263,-330.86,0.00012131,2]
[337529212,1725755432272,-105.20621227,0.00012552,2]
[337529213,1725755432284,-290.17378773,0.00012552,2]
[337529214,1725755432293,-395.38,0.00012555,2]
[337529215,1725755432303,-17.82409545,0.00012558,2]
[337529216,1725755432324,-340.78735789,0.00012558,2]
[337529217,1725755432335,-36.76854666,0.00012558,2]
[337529218,1725755432345,-395.38,0.00012562,2]
[337529219,1725755432354,-395.38,0.00012565,2]
[337529220,1725755432363,-395.38,0.00012568,2]
[337529221,1725755432372,-395.38,0.00012572,2]
[337529222,1725755432382,-395.38,0.00012575,2]
[337529223,1725755432391,-395.38,0.00012578,2]
[337529224,1725755432402,-395.38,0.00012582,2]
[337529225,1725755432412,-395.38,0.00012585,2]
[337529226,1725755432421,-395.38,0.00012588,2]
[337529227,1725755432430,-395.38,0.00012592,2]
[337529228,1725755432439,-395.38,0.00012595,2]
[337529229,1725755432449,-395.38,0.00012598,2]
[337529230,1725755432459,-1819.0,0.000126,2]
[337529231,1725755432468,-395.38,0.00012601,2]
[337529232,1725755432477,-395.38,0.00012605,2]
[337529233,1725755432487,-395.38,0.00012608,2]
[337529235,1725755432496,-395.38,0.00012611,2]
[337529237,1725755432505,-395.38,0.00012615,2]
[337529238,1725755432514,-3000.0,0.0001287,2]
[337529239,1725755432524,-307.277,0.000129,2]
[337529240,1725755432533,-174.514,0.000129,2]
[337529241,1725755432543,-400.0,0.000129,4]
[337529242,1725755432552,-150.0,0.000129,2]
[337529244,1725755432561,-657.38318229,0.000129,2]
[337529247,1725755432570,-160.015328,0.00012973,2]
[337529248,1725755432579,-160.23,0.0001299,2]
[337529250,1725755432593,-23635.8003631,0.00012998,2]
[337529251,1725755432602,-4556.660147,0.00012998,2]
[337529252,1725755432612,-1800.3954301,0.00012998,2]
[337529253,1725755432621,-149763.84527037,0.00013,2]
[337529255,1725755438270,-514.74031448,0.00013,2]
[337529256,1725755438328,-275.96458678,0.00013,2]
[337529257,1725755438385,-1209.91673679,0.00013,2]
[337529258,1725755438396,-3912.37242861,0.00013,2]
[337529259,1725755438550,-208015.23906333,0.00013,2]
[337529260,1725755438660,-306.42367944,0.00013,2]
[337529261,1725755438673,-310.24010705,0.00013,2]
[337529262,1725755440449,-2745.24789515,0.00013,2]
[337529263,1725755440461,-694.93809219,0.00013,2]
[337529334,1725755446347,-1907.53700542,0.00013,2]
[337529335,1725755446360,-435.93874686,0.00013,2]
[337529336,1725755446403,-386.34,0.00013,2]
[337529339,1725755527478,500.0,0.00027,120]
[337529340,1725755542398,426.83683942,0.00027,120]
[337529343,1725755696268,314.5,0.00010289,2]
[337529344,1725755885469,10000.0,0.00027,120]
[337529345,1725755907463,5000.0,0.00027,120]
[337529346,1725755938942,218.590532,0.00011,2]
[337529347,1725755938970,415.72,0.00011,2]
[337529348,1725755938994,115.689468,0.00011,2]
[337529349,1725756077602,3000.0,0.00027,120]
[337529351,1725756177656,151.23,0.00011396,2]
[337529352,1725756179317,168.22,0.00011396,2]
[337529353,1725756228253,250.0,0.00011377,2]
[337529354,1725756285340,201.27,0.00011392,2]
[337529355,1725756307044,150.0,0.00012,2]
[337529356,1725756353472,314.28,9.649e-05,2]
[337529357,1725756353696,314.28,0.00011913,2]
[337529358,1725756358202,262.4,0.00011567,2]
[337529359,1725756475162,250.0,0.00011676,2]
[337529360,1725756493428,170.15,0.00011681,2]
[337529361,1725756507184,200.02,0.00011681,2]
[337529362,1725756573095,-296.88,0.00012015,2]
[337529363,1725756573124,-296.88,0.00012018,2]
[337529364,1725756573153,-296.88,0.00012021,2]
[337529365,1725756573183,-296.88,0.00012024,2]
[337529366,1725756573211,-296.88,0.00012027,2]
[337529367,1725756573240,-296.88,0.0001203,2]
[337529368,1725756573270,-296.88,0.00012033,2]
[337529369,1725756573300,-296.88,0.00012037,2]
[337529370,1725756573329,-296.88,0.0001204,2]
[337529371,1725756573358,-296.88,0.00012043,2]
[337529372,1725756573386,-124.23738497,0.00012046,2]
[337529374,1725756592753,798.96,0.00011773,2]
[337529378,1725756631394,-172.64261503,0.00012046,2]
[337529379,1725756631403,-296.88,0.00012049,2]
[337529380,1725756631413,-296.88,0.00012052,2]
[337529381,1725756631422,-133.59738497,0.00012056,2]
[337529382,1725756631433,-163.28261503,0.00012056,2]
[337529383,1725756631443,-148.73838091,0.00012059,2]
[337529384,1725756631454,-148.14161909,0.00012059,2]
[337529385,1725756631463,-296.88,0.00012062,2]
[337529386,1725756631472,-242.10292244,0.00012065,2]
[337529387,1725756631484,-54.77707756,0.00012065,2]
[337529388,1725756631493,-274.83169981,0.00012068,2]
[337529389,1725756631613,-22.04830019,0.00012068,2]
[337529390,1725756631623,-296.88,0.00012071,2]
[337529391,1725756631634,-296.88,0.00012074,2]
[337529392,1725756631644,-200.24748702,0.000121,2]
[337529407,1725756637468,-2.05251298,0.000121,2]
[337529408,1725756637478,-737.6,0.0001215,2]
[337529409,1725756637488,-300.0,0.00012558,2]
[337529410,1725756637497,-4085.08990765,0.00012559,2]
[337529411,1725756637737,-2315.68697216,0.00012559,2]
[337529412,1725756637746,-109.31302783,0.00012559,2]
[337529416,1725756639506,-40.68697217,0.00012559,2]
[337529417,1725756639516,-157.3,0.00012599,2]
[337529418,1725756639527,-137.27452823,0.00012621,2]
[337529419,1725756639724,-2594.39547177,0.00012621,2]
[337529420,1725756639736,-150.0,0.00012648,2]
[337529421,1725756639746,-1500.0,0.00012653,2]
[337529422,1725756639757,-1455.31022809,0.00012658,2]
[337529423,1725756639770,-44.68977191,0.00012658,2]
[337529424,1725756639779,-1500.0,0.00012662,2]
[337529425,1725756639789,-1500.0,0.00012666,2]
[337529426,1725756639798,-150.0,0.00012666,2]
[337529427,1725756639807,-150.0,0.00012671,2]
[337529428,1725756639815,-150.0,0.00012682,2]
[337529429,1725756639824,-1500.0,0.00012696,2]
[337529430,1725756639834,-422.14,0.000127,2]
[337529431,1725756639845,-150.0,0.000127,2]
[337529432,1725756639854,-759.83574953,0.000127,2]
[337529433,1725756639893,-32.00425047,0.000127,2]
[337529434,1725756639903,-150.0,0.000127,2]
[337529435,1725756639913,-422.14,0.000127,2]
[337529436,1725756639923,-245.83,0.000127,2]
[337529437,1725756639933,-427.51,0.000127,2]
[337529438,1725756639944,-150.0,0.000127,2]
[337529440,1725756639955,-150.0,0.000127,2]
[337529442,1725756639965,-357.46,0.000127,2]
[337529444,1725756639975,-150.0,0.000127,2]
[337529446,1725756639986,-427.51,0.000127,2]
[337529448,1725756639996,-150.0,0.000127,2]
[337529450,1725756640007,-357.46,0.000127,2]
[337529452,1725756640017,-427.51,0.000127,2]
[337529454,1725756640027,-357.46,0.000127,2]
[337529456,1725756640037,-150.0,0.000127,2]
[337529458,1725756640047,-150.0,0.000127,2]
[337529460,1725756640057,-150.0,0.00012704,2]
[337529462,1725756640066,-150.0,0.00012704,2]
[337529464,1725756640075,-150.0,0.00012705,2]
[337529466,1725756640085,-1013.99574953,0.00012711,2]
[337529560,1725756645719,-486.00425047,0.00012711,2]
[337529561,1725756645729,-150.0,0.00012716,2]
[337529562,1725756645739,-150.0,0.00012725,2]
[337529563,1725756645748,-150.0,0.00012726,2]
[337529564,1725756645757,-44.17824329,0.00012727,2]
[337529565,1725756645769,-105.82175671,0.00012727,2]
[337529566,1725756645778,-150.0,0.0001273,2]
[337529567,1725756645789,-1500.0,0.00012736,2]
[337529568,1725756645803,-150.0,0.00012744,2]
[337529569,1725756645812,-150.0,0.00012744,2]
[337529570,1725756645822,-1500.0,0.00012745,2]
[337529571,1725756645831,-1500.0,0.0001275,2]
[337529572,1725756645840,-1500.0,0.00012751,2]
[337529573,1725756645849,-1500.0,0.00012754,2]
[337529574,1725756645858,-150.0,0.00012762,2]
[337529576,1725756646026,-364.27725475,0.00012762,2]
[337529577,1725756646039,-150.0,0.00012765,2]
[337529578,1725756646049,-150.0,0.00012768,2]
[337529579,1725756646058,-500.0,0.00012783,2]
[337529580,1725756646067,-150.0,0.00012783,2]
[337529581,1725756646076,-150.0,0.00012785,2]
[337529582,1725756646085,-150.0,0.00012785,2]
[337529583,1725756646095,-150.0,0.00012786,2]
[337529584,1725756646104,-1500.0,0.00012794,2]
[337529586,1725756646113,-150.0,0.00012797,2]
[337529587,1725756646122,-500.0,0.000128,2]
[337529588,1725756646132,-150.0,0.0001281,2]
[337529589,1725756646141,-150.0,0.00012825,2]
[337529590,1725756646150,-150.0,0.00012826,2]
[337529591,1725756646160,-150.0,0.00012827,2]
[337529592,1725756646170,-150.0,0.00012829,2]
[337529593,1725756646179,-150.0,0.00012829,2]
[337529594,1725756646188,-1500.0,0.00012829,2]
[337529595,1725756646198,-150.0,0.0001283,2]
[337529596,1725756646207,-1500.0,0.00012836,2]
[337529597,1725756646217,-1500.0,0.00012839,2]
[337529598,1725756646227,-150.0,0.00012847,2]
[337529599,1725756646237,-1500.0,0.00012847,2]
[337529600,1725756646248,-150.0,0.00012856,2]
[337529601,1725756646258,-150.0,0.00012856,2]
[337529602,1725756646268,-150.0,0.00012859,2]
[337529603,1725756646280,-150.0,0.00012862,2]
[337529604,1725756646290,-150.0,0.00012864,2]
[337529605,1725756646301,-1500.0,0.00012866,2]
[337529606,1725756646311,-3000.0,0.0001287,2]
[337529607,1725756646320,-1524.01109,0.0001287,2]
[337529608,1725756646330,-150.0,0.0001287,2]
[337529609,1725756646340,-1500.0,0.00012873,2]
[337529610,1725756646351,-150.0,0.00012876,2]
[337529611,1725756646360,-150.0,0.00012884,2]
[337529612,1725756646369,-150.0,0.00012888,2]
[337529613,1725756646379,-1500.0,0.00012889,2]
[337529614,1725756646388,-150.0,0.00012889,2]
[337529615,1725756646398,-1290.73261076,0.00012891,2]
[337529616,1725756646407,-150.0,0.00012897,2]
[337529617,1725756646416,-509.52051668,0.00012898,2]
[337529618,1725756646504,-3283.69908332,0.00012898,2]
[337529619,1725756646513,-1979.51729608,0.000129,2]
[337529620,1725756729033,250.0,0.00012011,2]
[337529621,1725756779301,119.17851298,0.00010959,2]
[337529622,1725756779324,39.26148702,0.00010959,2]
[337529623,1725756784156,193.78,0.00011955,2]
[337529624,1725756925842,790.08,0.00011884,2]
[337529625,1725756963868,290.61,9.923e-05,2]
[337529626,1725756993179,250.0,0.00011833,2]
[337529627,1725757024884,200.0,0.00011831,2]
[337529628,1725757226996,250.0,0.00011807,2]
[337529629,1725757252579,238.16,0.00011807,2]
[337529631,1725757306875,193.78,0.00011803,2]
[337529632,1725757342640,275.59,0.00010959,2]
[337529633,1725757406280,367.93,0.00011808,2]
[337529634,1725757454138,291.58,9.888e-05,2]
[337529636,1725757542531,500.0,0.00011807,3]
[337529637,1725757629487,275.4,0.00012,10]
[337529638,1725757751090,750.0,0.00011,2]
[337529645,1725757831671,-291.58,0.00012152,2]
[337529646,1725757831680,-150.0,0.00012633,2]
[337529647,1725757831691,-150.0,0.00012641,2]
[337529648,1725757831701,-7.39184433,0.00012669,2]
[337529649,1725757831712,-792.5901174,0.00012669,2]
[337529650,1725757831727,-29.30803827,0.00012669,2]
[337529651,1725757831736,-824.46,0.00012701,2]
[337529652,1725757831747,-150.0,0.0001272,2]
[337529653,1725757831757,-300.0,0.00012724,2]
[337529654,1725757831766,-442.61,0.00012725,2]
[337529655,1725757831775,-150.0,0.00012726,2]
[337529656,1725757831785,-78.44446173,0.00012726,2]
[337529657,1725757831796,-1069.61818392,0.00012726,2]
[337529658,1725757831808,-541.0092199,0.00012726,2]
[337529659,1725757831819,-542.00634669,0.00012726,2]
[337529660,1725757831830,-567.14,0.00012726,2]
[337529661,1725757831852,-2416.53272701,0.00012726,2]
[337529662,1725757831863,-1655.92906075,0.00012726,2]
[337529663,1725757831872,-179.51318212,0.00012727,2]
[337529664,1725757831881,-150.0,0.00012742,2]
[337529665,1725757831891,-150.0,0.00012743,2]
[337529666,1725757831901,-1500.0,0.00012744,2]
[337529667,1725757831911,-150.0,0.00012748,2]
[337529669,1725757831920,-45.71816508,0.00012751,2]
[337529671,1725757831932,-104.28183492,0.00012751,2]
[337529672,1725757831941,-228.53887027,0.00012763,2]
[337529673,1725757831951,-150.0,0.00012765,2]
[337529674,1725757831960,-150.0,0.00012769,2]
[337529675,1725757831971,-500.0,0.0001277,2]
[337529676,1725757831980,-150.0,0.0001277,2]
[337529677,1725757831990,-3000.0,0.0001277,2]
[337529678,1725757832001,-762.9961592,0.0001277,2]
[337529679,1725757832012,-2237.0038408,0.0001277,2]
[337529680,1725757832022,-376.10488642,0.0001277,2]
[337529681,1725757832034,-542.67878054,0.0001277,2]
[337529682,1725757832060,-261.39657885,0.0001277,2]
[337529683,1725757834987,209.47,0.00011816,2]
[337529688,1725757837546,-343.83085419,0.0001277,2]
[337529690,1725757837556,-150.0,0.00012776,2]
[337529691,1725757837565,-150.0,0.00012777,2]
[337529692,1725757837574,-1524.0111,0.0001278,2]
[337529694,1725757837583,-150.0,0.00012782,2]
[337529695,1725757837593,-150.0,0.00012788,2]
[337529696,1725757837603,-531.79973372,0.0001279,2]
[337529697,1725757837612,-150.0,0.0001279,2]
[337529698,1725757837622,-150.0,0.0001279,2]
[337529699,1725757837632,-150.0,0.00012792,2]
[337529700,1725757837641,-481.5609,0.00012798,2]
[337529701,1725757837652,-400.0,0.000128,4]
[337529702,1725757837663,-769.92900479,0.000128,2]
[337529703,1725757837673,-150.0,0.00012802,2]
[337529704,1725757837687,-150.0,0.00012803,2]
[337529705,1725757837699,-150.0,0.00012806,2]
[337529706,1725757837710,-150.0,0.00012807,2]
[337529707,1725757837720,-150.0,0.00012808,2]
[337529708,1725757837731,-55.49921426,0.00012808,2]
[337529709,1725757837754,-94.50078574,0.00012808,2]
[337529710,1725757837763,-150.0,0.00012809,2]
[337529711,1725757837772,-746.13289934,0.0001281,2]
[337529712,1725757837940,-777.87819066,0.0001281,2]
[337529713,1725757837951,-150.0,0.00012812,2]
[337529714,1725757837961,-150.0,0.00012815,2]
[337529715,1725757837971,-150.0,0.00012824,2]
[337529717,1725757837981,-487.03368496,0.00012826,2]
[337529718,1725757837992,-150.0,0.00012838,2]
[337529719,1725757838002,-150.0,0.00012839,2]
[337529720,1725757838011,-150.0,0.00012839,2]
[337529721,1725757838020,-150.0,0.00012847,2]
[337529722,1725757838030,-152.64908017,0.00012847,2]
[337529723,1725757838039,-1524.0111,0.0001285,2]
[337529724,1725757838049,-150.0,0.00012851,2]
[337529725,1725757838058,-150.0,0.00012854,2]
[337529726,1725757838069,-150.0,0.00012873,2]
[337529727,1725757838080,-1500.0,0.00012875,2]
[337529728,1725757838091,-150.0,0.0001288,2]
[337529729,1725757838100,-4163.0,0.00012881,2]
[337529730,1725757838110,-1077.0,0.00012881,2]
[337529731,1725757838120,-150.0,0.00012882,2]
[337529732,1725757838132,-150.0,0.00012884,2]
[337529733,1725757838143,-150.0,0.00012886,2]
[337529734,1725757838153,-7500.0,0.00012895,2]
[337529735,1725757838163,-1358.7831,0.00012898,2]
[337529736,1725757838173,-11495.3286,0.00012898,2]
[337529737,1725757838182,-189017.7496,0.00012898,2]
[337529738,1725757838191,-3497.970885,0.000129,2]
[337529739,1725757838201,-2000.0,0.000129,2]
[337529740,1725757838212,-200.0,0.000129,2]
[337529741,1725757838224,-351.587,0.000129,2]
[337529742,1725757838235,-180.168,0.000129,2]
[337529743,1725757838245,-202.0109282,0.000129,2]
[337529744,1725757838255,-200.0,0.000129,2]
[337529745,1725757838264,-200.0,0.000129,2]
[337529746,1725757838275,-176.45092174,0.000129,2]
[337529747,1725757838286,-153.66948666,0.000129,2]
[337529748,1725757838297,-3000.0,0.000129,2]
[337529749,1725757838306,-3000.0,0.000129,2]
[337529750,1725757838316,-1524.01109,0.000129,2]
[337529751,1725757838325,-800.0,0.000129,4]
[337529752,1725757838337,-217.72162828,0.000129,2]
[337529753,1725757838346,-200.0,0.000129,2]
[337529754,1725757838355,-1500.0,0.00012902,2]
[337529755,1725757838365,-150.0,0.00012903,2]
[337529756,1725757838374,-150.0,0.00012908,2]
[337529757,1725757838384,-1500.0,0.00012916,2]
[337529758,1725757838394,-150.0,0.00012924,2]
[337529759,1725757838405,-1500.0,0.0001293,2]
[337529760,1725757838414,-150.0,0.00012934,2]
[337529761,1725757838424,-487.03368496,0.00012945,2]
[337529762,1725757838434,-150.0,0.00012949,2]
[337529763,1725757838444,-150.0,0.00012954,2]
[337529764,1725757838455,-150.0,0.00012956,2]
[337529765,1725757838464,-150.0,0.00012964,2]
[337529766,1725757838474,-150.0,0.00012966,2]
[337529767,1725757838484,-163.0872718,0.00012973,2]
[337529768,1725757838493,-159.26525615,0.00012973,2]
[337529769,1725757838502,-150.0,0.00012973,2]
[337529770,1725757838511,-1500.0,0.00012976,2]
[337529771,1725757838521,-150.0,0.00012989,2]
[337529772,1725757838530,-257.7776387,0.00012989,2]
[337529773,1725757838539,-154.93,0.0001299,2]
[337529774,1725757838548,-11668.9163927,0.00012999,2]
[337529775,1725757838558,-151.0,0.00012999,2]
[337529776,1725757838567,-151.0,0.00012999,2]
[337529777,1725757838577,-151.0,0.00012999,2]
[337529778,1725757838586,-238.804384,0.00012999,2]
[337529779,1725757838595,-151.0,0.00012999,2]
[337529780,1725757838605,-155.6919,0.00012999,2]
[337529781,1725757838614,-155.6919,0.00012999,2]
[337529782,1725757838624,-214.189398,0.00012999,2]
[337529783,1725757838633,-214.189398,0.00012999,2]
[337529784,1725757838642,-151.0,0.00012999,2]
[337529785,1725757838651,-151.0,0.00012999,2]
[337529786,1725757838661,-151.0,0.00012999,2]
[337529787,1725757838670,-151.0,0.00012999,2]
[337529788,1725757838679,-151.0,0.00012999,2]
[337529789,1725757838688,-500.0,0.00012999,2]
[337529790,1725757838697,-231.8393213,0.00012999,2]
[337529791,1725757838706,-517.17807308,0.00012999,2]
[337529792,1725757838715,-556.0,0.00013,2]
[337529793,1725757838725,-166573.77664349,0.00013,2]
[337529794,1725757838735,-172100.66132866,0.00013,2]
[337529795,1725757838759,-2193.76218081,0.00013,2]
[337529796,1725757838771,-1473.72428394,0.00013,2]
[337529797,1725757838805,-5841.00021091,0.00013,2]
[337529798,1725757838816,-8161.55232809,0.00013,2]
[337529804,1725757839780,-1025.24744927,0.00013,2]
[337529805,1725757839844,-422.26160224,0.00013,2]
[337529806,1725757839858,-570.57,0.00013,2]
[337529807,1725757839961,-13852.37510433,0.00013,2]
[337529808,1725757839970,-64958.56865223,0.00013,2]
[337529809,1725757839982,-961.27203814,0.00013,2]
[337529810,1725757840087,-1439.07083368,0.00013,2]
[337529811,1725757840098,-1399.85886565,0.00013,2]
[337529812,1725757840142,-34745.0960737,0.00013,2]
[337529853,1725757843035,-478.6711612,0.00013,2]
[337529854,1725757843072,-869.95370905,0.00013,2]
[337529855,1725757843115,-778.84,0.00013,2]
[337529856,1725757843136,-627.59413878,0.00013,2]
[337529857,1725757843152,-1968.40098272,0.00013,2]
[337529858,1725757843170,-323.966194,0.00013,2]
[337529862,1725757845730,-23015.59406421,0.00013,2]
[337529863,1725757845741,-151.0,0.00013,2]
[337529864,1725757845754,-151.0,0.00013,2]
[337529865,1725757845767,-151.0,0.00013,2]
[337529866,1725757845780,-151.0,0.00013,2]
[337529867,1725757845794,-151.0,0.00013,2]
[337529868,1725757845806,-152.427047,0.00013,2]
[337529869,1725757845820,-151.0,0.00013,2]
[337529870,1725757845833,-154.055316,0.00013,2]
[337529871,1725757845844,-150.0,0.00013,2]
[337529872,1725757845854,-150.0,0.00013,2]
[337529873,1725757845864,-229.876,0.00013,2]
[337529874,1725757845874,-151.0,0.00013,2]
[337529875,1725757846076,-151.0,0.00013,2]
[337529876,1725757846104,-152.137545,0.00013,2]
[337529877,1725757846114,-154.671101,0.00013,2]
[337529878,1725757846126,-151.0,0.00013,2]
[337529879,1725757846136,-151.0,0.00013,2]
[337529880,1725757846145,-151.526822,0.00013,2]
[337529881,1725757846154,-151.0,0.00013,2]
[337529882,1725757846163,-151.0,0.00013,2]
[337529883,1725757846172,-156.068606,0.00013,2]
[337529884,1725757846181,-164.685165,0.00013,2]